lending/lending_fUSD_20241120
["ID","MTS","AMOUNT","RATE_DAILY","PERIOD"]
[342776916,1732140659217,-500.0,0.00054794,120]
[342776917,1732140659227,-151.0,0.00054794,120]
[342776918,1732140659237,-500.0,0.00054794,120]
[342776919,1732140659247,-500.0,0.00054794,120]
[342776920,1732140659256,-500.0,0.00054794,120]
[342776921,1732140659266,-778.26,0.00054794,120]
[342776922,1732140659275,-500.0,0.00054794,120]
[342776923,1732140659284,-500.0,0.00054794,120]
[342776924,1732140659294,-500.0,0.00054794,120]
[342776925,1732140659304,-500.0,0.00054794,120]
[342776926,1732140659313,-561.95,0.00054794,120]
[342776927,1732140659323,-868.31,0.00054794,120]
[342776928,1732140659333,-1384.57,0.00054794,120]
[342776929,1732140659343,-400.36,0.00054794,7]
[342776930,1732140659353,-1122.37,0.00054794,120]
[342776931,1732140659363,-523.40341569,0.00054794,120]
[342776932,1732140659373,-502.47235415,0.00054794,120]
[342776933,1732140659384,-620.69,0.00054794,120]
[342776934,1732140659394,-500.12035877,0.00054794,120]
[342776935,1732140659404,-500.0,0.00054794,120]
[342776936,1732140659414,-1223.49,0.00054794,120]
[342776937,1732140659424,-151.0,0.00054794,120]
[342776938,1732140659434,-500.0,0.00054794,120]
[342776939,1732140659444,-500.0,0.00054794,120]
[342776940,1732140659454,-1516.54,0.00054794,120]
[342776941,1732140659464,-1041.7,0.00054794,120]
[342776942,1732140659473,-4704.32,0.00054794,120]
[342776943,1732140659483,-556.584,0.00054794,120]
[342776944,1732140659492,-500.0,0.00054794,120]
[342776945,1732140659503,-1309.89,0.00054794,120]
[342776946,1732140659512,-525.76,0.00054794,120]
[342776947,1732140659522,-500.0,0.00054794,120]
[342776948,1732140659532,-500.0,0.00054794,120]
[342776949,1732140659542,-500.0,0.00054794,120]
[342776950,1732140659551,-2012.7,0.00054794,120]
[342776951,1732140659561,-556.584,0.00054794,120]
[342776952,1732140659571,-2257.06,0.00054794,120]
[342776953,1732140659581,-151.0,0.00054794,120]
[342776954,1732140659591,-500.0,0.00054794,120]
[342776955,1732140659600,-500.0,0.00054794,120]
[342776956,1732140659610,-500.0,0.00054794,120]
[342776957,1732140659620,-656.82,0.00054794,120]
[342776958,1732140659630,-1047.88,0.00054794,120]
[342776959,1732140659640,-151.0,0.00054794,120]
[342776960,1732140659650,-500.0,0.00054794,120]
[342776961,1732140659660,-500.0,0.00054794,120]
[342776962,1732140659670,-1177.9,0.00054794,120]
[342776963,1732140659680,-500.0,0.00054794,120]
[342776964,1732140659690,-500.0,0.00054794,120]
[342776965,1732140659699,-279.4087554,0.00054794,120]
[342776966,1732140659709,-1603.42,0.00054794,120]
[342776967,1732140659718,-500.0,0.00054794,120]
[342776968,1732140659728,-500.0,0.00054794,120]
[342776969,1732140659738,-287.374401,0.00054794,120]
[342776970,1732140659749,-408.764038,0.00054794,120]
[342776971,1732140659760,-1567.54,0.00054794,120]
[342776972,1732140659770,-500.0,0.00054794,120]
[342776973,1732140659779,-500.0,0.00054794,120]
[342776974,1732140659789,-834.44,0.00054794,120]
[342776975,1732140659799,-500.0,0.00054794,120]
[342776976,1732140659809,-2004.44,0.00054794,120]
[342776977,1732140659818,-500.0,0.00054794,120]
[342776978,1732140659828,-500.0,0.00054794,120]
[342776979,1732140659838,-1050.71,0.00054794,120]
[342776980,1732140659848,-500.0,0.00054794,120]
[342776981,1732140659858,-500.0,0.00054794,120]
[342776982,1732140659867,-500.0,0.00054794,120]
[342776983,1732140659879,-1803.54,0.00054794,120]
[342776984,1732140659888,-500.0,0.00054794,120]
[342776985,1732140659898,-650.66,0.00054794,120]
[342776986,1732140659907,-516.91,0.00054794,120]
[342776987,1732140659917,-500.0,0.00054794,120]
[342776988,1732140659927,-500.0,0.00054794,120]
[342776989,1732140659936,-500.0,0.00054794,120]
[342776990,1732140659946,-500.0,0.00054794,120]
[342776991,1732140659956,-500.0,0.00054794,120]
[342776992,1732140659965,-500.0,0.00054794,120]
[342776993,1732140659975,-500.0,0.00054794,120]
[342776994,1732140659984,-151.0,0.00054794,120]
[342776995,1732140659994,-950.3,0.00054794,120]
[342776996,1732140660003,-4162.19,0.00054794,120]
[342776997,1732140660013,-500.0,0.00054794,120]
[342776998,1732140660023,-729.88,0.00054794,120]
[342776999,1732140660033,-500.0,0.00054794,120]
[342777000,1732140660043,-1437.64,0.00054794,120]
[342777001,1732140660054,-500.0,0.00054794,120]
[342777002,1732140660063,-1325.24,0.00054794,120]
[342777003,1732140660073,-500.0,0.00054794,120]
[342777004,1732140660083,-951.19,0.00054794,120]
[342777005,1732140660093,-500.0,0.00054794,120]
[342777006,1732140660103,-739.2,0.00054794,120]
[342777007,1732140660114,-500.0,0.00054794,120]
[342777008,1732140660127,-711.16,0.00054794,120]
[342777009,1732140660137,-151.0,0.00054794,120]
[342777010,1732140660147,-500.24141558,0.00054794,120]
[342777011,1732140660157,-35063.23,0.00054794,120]
[342777012,1732140660167,-500.0,0.00054794,120]
[342777013,1732140660176,-758.38,0.00054794,120]
[342777014,1732140660186,-500.0,0.00054794,120]
[342777015,1732140660196,-500.0,0.00054794,120]
[342777016,1732140660206,-500.0,0.00054794,120]
[342777017,1732140660215,-1066.88,0.00054794,120]
[342777018,1732140660225,-500.0,0.00054794,120]
[342777019,1732140660234,-500.0,0.00054794,120]
[342777020,1732140660244,-604.09,0.00054794,120]
[342777021,1732140660254,-500.0,0.00054794,120]
[342777022,1732140660263,-516.9,0.00054794,120]
[342777023,1732140660273,-1309.97,0.00054794,120]
[342777024,1732140660283,-1271.19,0.00054794,120]
[342777025,1732140660293,-500.0,0.00054794,120]
[342777026,1732140660302,-1776.53,0.00054794,120]
[342777027,1732140660312,-1055.78,0.00054794,120]
[342777028,1732140660322,-500.0,0.00054794,120]
[342777029,1732140660331,-2027.31,0.00054794,120]
[342777030,1732140660341,-2957.46,0.00054794,120]
[342777031,1732140660350,-500.0,0.00054794,120]
[342777032,1732140660360,-3450.26,0.00054794,120]
[342777033,1732140660369,-565.96,0.00054794,120]
[342777034,1732140660383,-1015.77,0.00054794,120]
[342777035,1732140660393,-500.0,0.00054794,120]
[342777036,1732140660403,-543.5784316,0.00054794,120]
[342777037,1732140660413,-5653.29,0.00054794,120]
[342777038,1732140660423,-500.0,0.00054794,120]
[342777039,1732140660434,-223.614548,0.00054794,7]
[342777040,1732140660444,-2531.55,0.00054794,120]
[342777041,1732140660454,-1396.17,0.00054794,120]
[342777042,1732140660464,-578.1,0.00054794,120]
[342777043,1732140660474,-699.76,0.00054794,120]
[342777044,1732140660484,-173.81569158,0.00054794,120]
[342777045,1732140660495,-500.0,0.00054794,120]
[342777046,1732140660505,-1045.04,0.00054794,120]
[342777047,1732140660516,-185.406492,0.00054794,120]
[342777048,1732140660526,-1833.67,0.00054794,120]
[342777049,1732140660536,-500.0,0.00054794,120]
[342777050,1732140660547,-500.0,0.00054794,120]
[342777051,1732140660557,-500.0,0.00054794,120]
[342777052,1732140660567,-671.36,0.00054794,120]
[342777053,1732140660578,-500.0,0.00054794,120]
[342777054,1732140660588,-185.406492,0.00054794,120]
[342777055,1732140660598,-500.0,0.00054794,120]
[342777056,1732140660608,-500.0,0.00054794,120]
[342777057,1732140660619,-618.56,0.00054794,120]
[342777058,1732140660904,-1250.43,0.00054794,120]
[342777059,1732140660961,-1529.97,0.00054794,120]
[342777060,1732140660970,-916.63,0.00054794,120]
[342777061,1732140660980,-7124.81,0.00054794,120]
[342777062,1732140660989,-1979.2,0.00054794,120]
[342777063,1732140660999,-1449.91,0.00054794,120]
[342777064,1732140661009,-661.14,0.00054794,120]
[342777065,1732140661018,-661.14,0.00054794,120]
[342777066,1732140661027,-1114.64,0.00054794,120]
[342777067,1732140661037,-151.0,0.00054794,120]
[342777068,1732140661046,-661.14,0.00054794,120]
[342777069,1732140661056,-661.14,0.00054794,120]
[342777070,1732140661065,-507.38978762,0.00054794,120]
[342777071,1732140661076,-661.14,0.00054794,120]
[342777072,1732140661085,-210.788954,0.00054794,120]
[342777073,1732140661097,-661.14,0.00054794,120]
[342777074,1732140661109,-500.0,0.00054794,120]
[342777075,1732140661126,-661.14,0.00054794,120]
[342777076,1732140661136,-500.0,0.00054794,120]
[342777077,1732140661145,-500.0,0.00054794,120]
[342777078,1732140661154,-661.14,0.00054794,120]
[342777079,1732140661164,-1049.5,0.00054794,120]
[342777080,1732140661174,-500.0,0.00054794,120]
[342777081,1732140661183,-661.14,0.00054794,120]
[342777082,1732140661195,-661.14,0.00054794,120]
[342777083,1732140661205,-500.0,0.00054794,120]
[342777084,1732140661214,-661.14,0.00054794,120]
[342777085,1732140661223,-661.14,0.00054794,120]
[342777086,1732140661233,-661.14,0.00054794,120]
[342777087,1732140661242,-661.14,0.00054794,120]
[342777088,1732140661251,-661.14,0.00054794,120]
[342777089,1732140661261,-661.14,0.00054794,120]
[342777090,1732140661270,-661.14,0.00054794,120]
[342777091,1732140661279,-210.788954,0.00054794,120]
[342777092,1732140661290,-500.0,0.00054794,120]
[342777093,1732140661299,-661.14,0.00054794,120]
[342777094,1732140661309,-661.14,0.00054794,120]
[342777095,1732140661319,-661.14,0.00054794,120]
[342777096,1732140661328,-500.0,0.00054794,120]
[342777097,1732140661339,-661.14,0.00054794,120]
[342777098,1732140661349,-661.14,0.00054794,120]
[342777099,1732140661359,-661.14,0.00054794,120]
[342777100,1732140661368,-2536.25,0.00054794,120]
[342777101,1732140661379,-661.28716249,0.00054794,120]
[342777102,1732140661388,-608.21,0.00054794,120]
[342777103,1732140661398,-608.21,0.00054794,120]
[342777104,1732140661408,-608.21,0.00054794,120]
[342777105,1732140661417,-608.21,0.00054794,120]
[342777106,1732140661427,-3951.61,0.00054794,120]
[342777107,1732140661437,-608.21,0.00054794,120]
[342777108,1732140661447,-608.21,0.00054794,120]
[342777109,1732140661456,-2472.73,0.00054794,120]
[342777110,1732140661466,-500.0,0.00054794,120]
[342777111,1732140661475,-500.0,0.00054794,120]
[342777112,1732140661485,-608.21,0.00054794,120]
[342777113,1732140661495,-500.0,0.00054794,120]
[342777114,1732140661504,-608.21,0.00054794,120]
[342777115,1732140661514,-608.21,0.00054794,120]
[342777116,1732140661523,-500.0,0.00054794,120]
[342777117,1732140661533,-608.21,0.00054794,120]
[342777118,1732140661543,-786.55,0.00054794,120]
[342777119,1732140661553,-608.21,0.00054794,120]
[342777120,1732140661562,-608.21,0.00054794,120]
[342777121,1732140661571,-4870.15,0.00054794,120]
[342777122,1732140661581,-608.21,0.00054794,120]
[342777123,1732140661591,-608.21,0.00054794,120]
[342777124,1732140661600,-608.21,0.00054794,120]
[342777125,1732140661610,-608.21,0.00054794,120]
[342777126,1732140661619,-608.21,0.00054794,120]
[342777127,1732140661631,-608.21,0.00054794,120]
[342777128,1732140661640,-608.21,0.00054794,120]
[342777129,1732140661650,-883.86,0.00054794,120]
[342777130,1732140661660,-500.90497275,0.00054794,120]
[342777131,1732140661675,-608.21,0.00054794,120]
[342777132,1732140661694,-608.21,0.00054794,120]
[342777133,1732140661709,-500.0,0.00054794,120]
[342777134,1732140661719,-4533.42,0.00054794,120]
[342777135,1732140661729,-2000.0,0.00054794,30]
[342777136,1732140661738,-608.21,0.00054794,120]
[342777137,1732140661748,-608.21,0.00054794,120]
[342777138,1732140661757,-608.27921045,0.00054794,120]
[342777139,1732140661767,-500.0,0.00054794,120]
[342777140,1732140661777,-500.0,0.00054794,120]
[342777141,1732140661786,-500.0,0.00054794,120]
[342777142,1732140661796,-636.47,0.00054794,120]
[342777143,1732140661805,-851.5,0.00054794,120]
[342777144,1732140661815,-1816.21,0.00054794,120]
[342777145,1732140661825,-500.0,0.00054794,120]
[342777146,1732140661834,-616.92,0.00054794,120]
[342777147,1732140661843,-1014.23,0.00054794,120]
[342777148,1732140661853,-6811.17,0.00054794,120]
[342777149,1732140661862,-500.0,0.00054794,120]
[342777150,1732140661871,-500.0,0.00054794,120]
[342777151,1732140661882,-500.0,0.00054794,120]
[342777152,1732140661892,-500.0,0.00054794,120]
[342777153,1732140661902,-500.7537283,0.00054794,120]
[342777154,1732140661912,-500.0,0.00054794,120]
[342777155,1732140661921,-1332.89,0.00054794,120]
[342777156,1732140661930,-753.95,0.00054794,120]
[342777157,1732140661940,-10722.81,0.00054794,120]
[342777158,1732140661949,-500.0,0.00054794,120]
[342777159,1732140661959,-500.0,0.00054794,120]
[342777160,1732140661968,-1359.85,0.00054794,120]
[342777161,1732140661977,-2324.44,0.00054794,120]
[342777162,1732140661986,-500.45172117,0.00054794,120]
[342777163,1732140661995,-500.0,0.00054794,120]
[342777164,1732140662005,-535.04,0.00054794,120]
[342777165,1732140662014,-4406.16,0.00054794,120]
[342777166,1732140662024,-500.0,0.00054794,120]
[342777167,1732140662033,-500.0,0.00054794,120]
[342777168,1732140662042,-1128.91,0.00054794,120]
[342777169,1732140662051,-500.0,0.00054794,120]
[342777170,1732140662060,-665.96,0.00054794,120]
[342777171,1732140662069,-500.0,0.00054794,120]
[342777172,1732140662079,-501.29516633,0.00054794,120]
[342777173,1732140662088,-980.99,0.00054794,120]
[342777174,1732140662097,-500.0,0.00054794,120]
[342777175,1732140662107,-580.64,0.00054794,120]
[342777176,1732140662118,-892.8,0.00054794,120]
[342777177,1732140662128,-500.0,0.00054794,120]
[342777178,1732140662138,-500.0,0.00054794,120]
[342777179,1732140662147,-1436.75,0.00054794,120]
[342777180,1732140662157,-778.22,0.00054794,120]
[342777181,1732140662167,-558.99,0.00054794,120]
[342777182,1732140662176,-1153.44,0.00054794,7]
[342777183,1732140662185,-500.0,0.00054794,120]
[342777184,1732140662195,-500.0,0.00054794,120]
[342777185,1732140662205,-2548.81,0.00054794,120]
[342777186,1732140662214,-500.0,0.00054794,120]
[342777187,1732140662224,-3675.23,0.00054794,120]
[342777188,1732140662233,-500.0,0.00054794,120]
[342777189,1732140662242,-500.0,0.00054794,120]
[342777190,1732140662251,-381.89893835,0.00054794,120]
[342777191,1732140662261,-500.0,0.00054794,120]
[342777192,1732140662270,-500.0,0.00054794,120]
[342777193,1732140662279,-500.0,0.00054794,120]
[342777194,1732140662289,-2249.83,0.00054794,120]
[342777195,1732140662298,-3167.44,0.00054794,120]
[342777196,1732140662307,-500.0,0.00054794,120]
[342777197,1732140662317,-500.24129566,0.00054794,120]
[342777198,1732140662326,-500.0,0.00054794,120]
[342777199,1732140662335,-500.0,0.00054794,120]
[342777200,1732140662345,-11179.92,0.00054794,21]
[342777201,1732140662354,-500.0,0.00054794,120]
[342777202,1732140662363,-343.03541655,0.00054794,120]
[342777203,1732140662373,-500.0,0.00054794,120]
[342777204,1732140662384,-500.0,0.00054794,120]
[342777205,1732140662393,-859.5,0.00054794,120]
[342777206,1732140662403,-500.0,0.00054794,120]
[342777207,1732140662412,-3662.75,0.00054794,120]
[342777208,1732140662422,-2000.0,0.00054794,120]
[342777209,1732140662431,-922.45,0.00054794,120]
[342777210,1732140662441,-500.0,0.00054794,120]
[342777211,1732140662451,-500.0,0.00054794,120]
[342777212,1732140662461,-2304.49,0.00054794,120]
[342777213,1732140662471,-231.238367,0.00054794,120]
[342777214,1732140662480,-500.0,0.00054794,120]
[342777215,1732140662489,-500.0,0.00054794,120]
[342777216,1732140662499,-2304.49,0.00054794,120]
[342777217,1732140662508,-2304.49,0.00054794,120]
[342777218,1732140662517,-1994.35,0.00054794,120]
[342777219,1732140662527,-2304.49,0.00054794,120]
[342777220,1732140662536,-500.0,0.00054794,120]
[342777221,1732140662545,-2304.49,0.00054794,120]
[342777222,1732140662555,-2304.49,0.00054794,120]
[342777223,1732140662565,-2304.49,0.00054794,120]
[342777224,1732140662574,-500.0,0.00054794,120]
[342777225,1732140662583,-2304.49,0.00054794,120]
[342777226,1732140662593,-2304.49,0.00054794,120]
[342777227,1732140662602,-2304.49,0.00054794,120]
[342777228,1732140662611,-2304.49,0.00054794,120]
[342777229,1732140662621,-2304.49,0.00054794,120]
[342777230,1732140662638,-66449.02,0.00054794,5]
[342777231,1732140662647,-2304.49,0.00054794,120]
[342777232,1732140662656,-500.0,0.00054794,120]
[342777233,1732140662665,-1162.72,0.00054794,120]
[342777234,1732140662675,-1363.9,0.00054794,120]
[342777235,1732140662684,-2304.49,0.00054794,120]
[342777236,1732140662693,-2304.49,0.00054794,120]
[342777237,1732140662702,-231.238367,0.00054794,120]
[342777238,1732140662711,-1114.06,0.00054794,120]
[342777239,1732140662721,-2304.49,0.00054794,120]
[342777240,1732140662729,-1815.23,0.00054794,120]
[342777241,1732140662738,-500.0,0.00054794,120]
[342777242,1732140662747,-2304.49,0.00054794,120]
[342777243,1732140662756,-2304.49,0.00054794,120]
[342777244,1732140662766,-2304.49,0.00054794,120]
[342777245,1732140662775,-1159.58,0.00054794,120]
[342777246,1732140662784,-2304.49,0.00054794,120]
[342777247,1732140662794,-2304.49,0.00054794,120]
[342777248,1732140662803,-2304.49,0.00054794,120]
[342777249,1732140662812,-2304.49,0.00054794,120]
[342777250,1732140662821,-500.0,0.00054794,120]
[342777251,1732140662830,-2304.66548006,0.00054794,120]
[342777252,1732140662839,-500.0,0.00054794,120]
[342777253,1732140662848,-500.0,0.00054794,120]
[342777254,1732140662857,-2826.01,0.00054794,120]
[342777255,1732140662866,-500.0,0.00054794,120]
[342777256,1732140662876,-6111.41,0.00054794,120]
[342777257,1732140662885,-500.0,0.00054794,120]
[342777258,1732140662894,-500.0,0.00054794,120]
[342777259,1732140662903,-500.0,0.00054794,120]
[342777260,1732140662912,-163.746603,0.00054794,120]
[342777261,1732140662922,-500.0,0.00054794,120]
[342777262,1732140662931,-1031.65,0.00054794,120]
[342777263,1732140662940,-500.0,0.00054794,120]
[342777264,1732140662950,-151.0,0.00054794,30]
[342777265,1732140662960,-151.0,0.00054794,120]
[342777266,1732140662971,-163.746603,0.00054794,120]
[342777267,1732140662982,-532.59,0.00054794,120]
[342777268,1732140662992,-754.16,0.00054794,120]
[342777269,1732140663001,-500.0,0.00054794,120]
[342777270,1732140663011,-500.0,0.00054794,120]
[342777271,1732140663022,-553.58,0.00054794,120]
[342777272,1732140663031,-500.0,0.00054794,120]
[342777273,1732140663042,-500.0,0.00054794,120]
[342777274,1732140663051,-500.0,0.00054794,120]
[342777275,1732140663060,-3918.3,0.00054794,120]
[342777276,1732140663070,-151.0,0.00054794,120]
[342777277,1732140663080,-500.0,0.00054794,120]
[342777278,1732140663090,-500.0,0.00054794,120]
[342777279,1732140663099,-687.41,0.00054794,120]
[342777280,1732140663109,-2233.29,0.00054794,120]
[342777281,1732140663129,-2901.67,0.00054794,120]
[342777282,1732140663141,-500.0,0.00054794,120]
[342777283,1732140663150,-151.0,0.00054794,120]
[342777284,1732140663159,-1140.89,0.00054794,120]
[342777285,1732140663169,-1693.94,0.00054794,120]
[342777286,1732140663178,-743.27,0.00054794,120]
[342777287,1732140663188,-174.753767,0.00054794,30]
[342777288,1732140663197,-4798.42,0.00054794,120]
[342777289,1732140663207,-884.65,0.00054794,120]
[342777290,1732140663216,-500.0,0.00054794,120]
[342777291,1732140663226,-589.18,0.00054794,120]
[342777292,1732140663235,-500.0,0.00054794,120]
[342777293,1732140663245,-1609.97,0.00054794,120]
[342777294,1732140663255,-525.72397293,0.00054794,120]
[342777295,1732140663264,-500.0,0.00054794,120]
[342777296,1732140663371,-842.19,0.00054794,120]
[342777297,1732140663383,-500.0,0.00054794,120]
[342777298,1732140663394,-500.0,0.00054794,120]
[342777299,1732140663404,-548.16,0.00054794,120]
[342777300,1732140663414,-4873.91,0.00054794,120]
[342777301,1732140663424,-1086.88,0.00054794,120]
[342777302,1732140663433,-500.0,0.00054794,120]
[342777303,1732140663443,-1158.88,0.00054794,120]
[342777304,1732140663452,-500.0,0.00054794,120]
[342777305,1732140663462,-7009.95,0.00054794,120]
[342777306,1732140663472,-725.57,0.00054794,120]
[342777307,1732140663481,-500.0,0.00054794,120]
[342777308,1732140663491,-500.0,0.00054794,120]
[342777309,1732140663501,-151.0,0.00054794,120]
[342777310,1732140663511,-500.0,0.00054794,120]
[342777311,1732140663520,-500.0,0.00054794,120]
[342777312,1732140663530,-2713.37,0.00054794,120]
[342777313,1732140663539,-2674.97,0.00054794,120]
[342777314,1732140663549,-1095.19,0.00054794,120]
[342777315,1732140663559,-500.0,0.00054794,120]
[342777316,1732140663569,-151.0,0.00054794,120]
[342777317,1732140663578,-3162.29,0.00054794,120]
[342777318,1732140663588,-500.0,0.00054794,120]
[342777319,1732140663597,-500.0,0.00054794,120]
[342777320,1732140663606,-500.0,0.00054794,120]
[342777321,1732140663616,-500.0,0.00054794,120]
[342777322,1732140663628,-500.0,0.00054794,120]
[342777323,1732140663638,-500.0,0.00054794,120]
[342777324,1732140663648,-5192.12,0.00054794,120]
[342777325,1732140663658,-6968.45,0.00054794,60]
[342777326,1732140663668,-500.0,0.00054794,120]
[342777327,1732140663678,-500.0,0.00054794,120]
[342777328,1732140663688,-500.0,0.00054794,120]
[342777329,1732140663698,-500.0,0.00054794,120]
[342777330,1732140663707,-500.0,0.00054794,120]
[342777331,1732140663716,-500.0,0.00054794,120]
[342777332,1732140663726,-788.84,0.00054794,120]
[342777333,1732140663735,-801.02,0.00054794,120]
[342777334,1732140663745,-1135.51,0.00054794,120]
[342777335,1732140663753,-500.0,0.00054794,120]
[342777336,1732140663762,-565.84,0.00054794,120]
[342777337,1732140663772,-736.59,0.00054794,120]
[342777338,1732140663782,-500.0,0.00054794,120]
[342777339,1732140663792,-778.41,0.00054794,120]
[342777340,1732140663801,-500.0,0.00054794,120]
[342777341,1732140663810,-501.610142,0.00054794,120]
[342777342,1732140663819,-500.0,0.00054794,120]
[342777343,1732140663828,-2123.81,0.00054794,120]
[342777344,1732140663838,-1368.4,0.00054794,120]
[342777345,1732140663847,-1176.11,0.00054794,120]
[342777346,1732140663857,-500.0,0.00054794,120]
[342777347,1732140663867,-151.0,0.00054794,120]
[342777348,1732140663877,-500.0,0.00054794,120]
[342777349,1732140663887,-6444.84,0.00054794,120]
[342777350,1732140663897,-503.58545584,0.00054794,120]
[342777351,1732140663906,-840.5,0.00054794,120]
[342777352,1732140663916,-500.0,0.00054794,120]
[342777353,1732140663926,-1149.75,0.00054794,120]
[342777354,1732140663935,-538.19,0.00054794,120]
[342777355,1732140663945,-500.0,0.00054794,120]
[342777356,1732140663954,-1918.75,0.00054794,120]
[342777357,1732140663964,-527.39,0.00054794,120]
[342777358,1732140663974,-500.0,0.00054794,120]
[342777359,1732140663985,-924.66,0.00054794,120]
[342777360,1732140663995,-846.33,0.00054794,120]
[342777361,1732140664005,-1437.44,0.00054794,120]
[342777362,1732140664015,-655.97,0.00054794,120]
[342777363,1732140664025,-613.35,0.00054794,120]
[342777364,1732140664035,-151.254581,0.00054794,120]
[342777365,1732140664045,-1217.61,0.00054794,120]
[342777366,1732140664055,-7358.45,0.00054794,120]
[342777367,1732140664065,-1149.18,0.00054794,120]
[342777368,1732140664076,-500.0,0.00054794,120]
[342777369,1732140664086,-1763.901637,0.00054794,120]
[342777370,1732140664096,-1147.11,0.00054794,120]
[342777371,1732140664106,-500.0,0.00054794,120]
[342777372,1732140664117,-500.0,0.00054794,120]
[342777373,1732140664129,-500.0,0.00054794,120]
[342777374,1732140664139,-1974.94,0.00054794,120]
[342777375,1732140664148,-17457.35,0.00054794,120]
[342777376,1732140664159,-13034.59,0.00054794,120]
[342777377,1732140664168,-500.09305302,0.00054794,120]
[342777378,1732140664177,-2237.64,0.00054794,120]
[342777379,1732140664186,-500.0,0.00054794,120]
[342777380,1732140664198,-1763.901637,0.00054794,120]
[342777381,1732140664208,-500.0,0.00054794,120]
[342777382,1732140664217,-2737.65,0.00054794,120]
[342777383,1732140664226,-551.05,0.00054794,120]
[342777384,1732140664235,-500.0,0.00054794,120]
[342777385,1732140664244,-500.0,0.00054794,120]
[342777386,1732140664254,-2479.1,0.00054794,120]
[342777387,1732140664264,-500.0,0.00054794,120]
[342777388,1732140664275,-500.0,0.00054794,120]
[342777389,1732140664285,-500.0,0.00054794,120]
[342777390,1732140664295,-3077.78,0.00054794,120]
[342777391,1732140664304,-500.0,0.00054794,120]
[342777392,1732140664314,-151.0,0.00054794,120]
[342777393,1732140664324,-4393.1,0.00054794,120]
[342777394,1732140664334,-535.35,0.00054794,120]
[342777395,1732140664344,-656.88,0.00054794,120]
[342777396,1732140664354,-1967.61,0.00054794,120]
[342777397,1732140664364,-1550.26,0.00054794,120]
[342777398,1732140664376,-500.0,0.00054794,120]
[342777399,1732140664386,-500.0,0.00054794,120]
[342777400,1732140664396,-500.0,0.00054794,120]
[342777401,1732140664406,-500.0,0.00054794,120]
[342777402,1732140664416,-151.0,0.00054794,120]
[342777403,1732140664425,-725.78,0.00054794,120]
[342777404,1732140664436,-996.23,0.00054794,120]
[342777405,1732140664445,-5411.3,0.00054794,120]
[342777406,1732140664455,-500.0,0.00054794,120]
[342777407,1732140664465,-500.0,0.00054794,120]
[342777408,1732140664475,-559.06,0.00054794,120]
[342777409,1732140664485,-1127.77,0.00054794,120]
[342777410,1732140664495,-500.0,0.00054794,120]
[342777411,1732140664505,-570.31,0.00054794,120]
[342777412,1732140664516,-500.0,0.00054794,120]
[342777413,1732140664526,-7043.87,0.00054794,120]
[342777414,1732140664536,-580.25,0.00054794,120]
[342777415,1732140664546,-500.0,0.00054794,120]